[Event "Championnat d'Europe Rapide"]
[Date "2024.12.08"]
[White "Trushko, Andrii"]
[Black "Papasimakopoulos, Alexandros"]
[WhiteElo "2143"]
[BlackElo "2379"]
[Round "10.43"]
[Result "0-1"]
[TimeControl "900+10"]

1. d4 {[%emt 00:00:01] [%clk 00:15:18]} d5 {[%emt 00:00:02] [%clk 00:15:18]} 2.
Bf4 {[%emt 00:00:03] [%clk 00:15:24]} c5 {[%emt 00:00:02] [%clk 00:15:26]} 3. e3
{[%emt 00:00:03] [%clk 00:15:32]} Nc6 {[%emt 00:00:02] [%clk 00:15:34]} 4. c3
{[%emt 00:00:03] [%clk 00:15:39]} Qb6 {[%emt 00:00:02] [%clk 00:15:42]} 5. Qc2
{[%emt 00:00:08] [%clk 00:15:41]} g6 {[%emt 00:00:15] [%clk 00:15:37]} 6. Nd2
{[%emt 00:00:11] [%clk 00:15:41]} Bf5 {[%emt 00:00:03] [%clk 00:15:44]} 7. Qb3
{[%emt 00:00:13] [%clk 00:15:37]} c4 {[%emt 00:00:10] [%clk 00:15:44]} 8. Qxb6
{[%emt 00:00:03] [%clk 00:15:44]} axb6 {[%emt 00:00:02] [%clk 00:15:52]} 9. a3
{[%emt 00:00:16] [%clk 00:15:39]} Nf6 {[%emt 00:00:07] [%clk 00:15:54]} 10. f3
{[%emt 00:00:30] [%clk 00:15:19]} b5 {[%emt 00:00:08] [%clk 00:15:57]} 11. g4
{[%emt 00:00:01] [%clk 00:15:27]} Be6 {[%emt 00:00:13] [%clk 00:15:54]} 12. Rc1
{[%emt 00:00:07] [%clk 00:15:30]} Nd7 {[%emt 00:00:24] [%clk 00:15:40]} 13. h3
{[%emt 00:01:33] [%clk 00:14:07]} f6 {[%emt 00:00:10] [%clk 00:15:40]} 14. Bg2
{[%emt 00:00:50] [%clk 00:13:27]} Bf7 {[%emt 00:00:01] [%clk 00:15:49]} 15. Ne2
{[%emt 00:00:27] [%clk 00:13:09]} e5 {[%emt 00:00:04] [%clk 00:15:56]} 16. Bg3
{[%clk 00:13:18]} h5 {[%emt 00:00:10] [%clk 00:15:57]} 17. Kf2 {[%emt 00:00:27]
[%clk 00:13:01]} O-O-O {[%emt 00:00:47] [%clk 00:15:19]} 18. Ra1 {[%emt
00:00:47] [%clk 00:12:24]} Nb6 {[%emt 00:00:03] [%clk 00:15:26]} 19. Rhb1 {[%emt
00:00:17] [%clk 00:12:17]} Bd6 {[%clk 00:14:34]} 20. b3 {[%emt 00:01:36] [%clk
00:11:54]} h4 {[%clk 00:14:36]} 21. Bh2 {[%emt 00:00:23] [%clk 00:11:48]} exd4
{[%emt 00:00:08]} 22. Bxd6 {[%emt 00:00:05] [%clk 00:11:49]} dxe3+ {[%emt
00:00:02] [%clk 00:14:50]} 23. Kxe3 {[%emt 00:00:02] [%clk 00:11:58]} Rxd6
{[%emt 00:00:03] [%clk 00:14:57]} 24. bxc4 {[%emt 00:00:19] [%clk 00:11:49]}
Nxc4+ {[%emt 00:00:12] [%clk 00:14:55]} 25. Nxc4 {[%emt 00:00:01] [%clk
00:11:57]} bxc4 {[%emt 00:00:14] [%clk 00:14:51]} 26. f4 {[%emt 00:00:25] [%clk
00:11:43]} Re8+ {[%emt 00:01:19] [%clk 00:13:42]} 27. Kf2 {[%emt 00:00:03] [%clk
00:11:50]} Rde6 {[%emt 00:00:04] [%clk 00:13:48]} 28. Ra2 {[%emt 00:00:43] [%clk
00:11:17]} Re3 {[%emt 00:00:11] [%clk 00:13:46]} 29. a4 {[%emt 00:00:21] [%clk
00:11:06]} g5 {[%emt 00:01:24] [%clk 00:12:32]} 30. a5 {[%emt 00:00:45] [%clk
00:10:32]} Kc7 {[%emt 00:01:13] [%clk 00:11:29]} 31. Rb5 {[%emt 00:02:26] [%clk
00:08:16]} Rd3 {[%emt 00:00:35] [%clk 00:11:03]} 32. Rab2 {[%emt 00:00:20] [%clk
00:08:06]} Rb8 {[%emt 00:00:11] [%clk 00:11:02]} 33. Rb6 {[%emt 00:01:11] [%clk
00:07:06]} Be8 {[%emt 00:01:31] [%clk 00:09:40]} 34. R6b5 {[%emt 00:00:40] [%clk
00:06:36]} Ne7 {[%emt 00:00:15] [%clk 00:09:34]} 35. Rb6 {[%emt 00:00:03] [%clk
00:06:44]} Bc6 {[%emt 00:00:11] [%clk 00:09:33]} 36. Bf3 {[%emt 00:02:41] [%clk
00:04:14]} Ra8 {[%emt 00:00:53] [%clk 00:08:50]} 37. Nd4 {[%emt 00:00:35] [%clk
00:03:49]} Rxa5 {[%emt 00:00:25] [%clk 00:08:35]} 38. fxg5 {[%emt 00:00:57]
[%clk 00:03:02]} fxg5 {[%emt 00:00:05] [%clk 00:08:39]} 39. Ne6+ {[%emt
00:00:43] [%clk 00:02:29]} Kd7 {[%emt 00:00:30] [%clk 00:08:20]} 40. Nxg5 {[%emt
00:00:06] [%clk 00:02:32]} Rxc3 {[%emt 00:00:03] [%clk 00:08:27]} 41. Nf7 {[%emt
00:00:48] [%clk 00:01:54]} Raa3 {[%emt 00:00:06] [%clk 00:08:32]} 42. Bg2 {[%emt
00:00:18] [%clk 00:01:46]} Ng6 {[%emt 00:01:27] [%clk 00:07:15]} 43. Ng5 {[%emt
00:01:21] [%clk 00:00:35]} Nf4 {[%emt 00:00:11] [%clk 00:07:14]} 44. Bf1 {[%emt
00:00:06] [%clk 00:00:38]} d4 {[%emt 00:00:15] [%clk 00:07:09]} 45. R6b4 {[%emt
00:00:12] [%clk 00:00:36]} b5 {[%emt 00:00:11] [%clk 00:07:07]} 46. Nf7 {[%emt
00:00:06] [%clk 00:00:41]} Rf3+ {[%emt 00:00:07] [%clk 00:07:10]} 47. Kg1 {[%emt
00:00:04] [%clk 00:00:47]} Nxh3+ {[%emt 00:00:05] [%clk 00:07:16]} 48. Bxh3
{[%emt 00:00:03] [%clk 00:00:53]} Rxf7 {[%emt 00:00:03] [%clk 00:07:23]} 49. Kh2
{[%emt 00:00:22] [%clk 00:00:41]} Kd6 {[%emt 00:00:14] [%clk 00:07:19]} 50. g5
{[%emt 00:00:03] [%clk 00:00:48]} Rg3 {[%emt 00:00:05] [%clk 00:07:24]} 0-1

[Site "Europe Echecs"]

[Event "Championnat d'Europe Rapide"]
[Date "2024.12.08"]
[White "Savanovic, Aleksandar"]
[Black "Dinev, Dejan"]
[WhiteElo "2354"]
[BlackElo "2209"]
[Round "10.44"]
[Result "1-0"]
[TimeControl "900+10"]

1. e4 {[%clk 00:15:19]} e6 {[%emt 00:00:05] [%clk 00:15:16]} 2. d4 {[%emt
00:00:02] [%clk 00:15:26]} b6 {[%emt 00:00:02] [%clk 00:15:25]} 3. Bd3 {[%emt
00:00:06] [%clk 00:15:29]} Bb7 {[%emt 00:00:02] [%clk 00:15:33]} 4. Qe2 {[%emt
00:00:02] [%clk 00:15:36]} Nc6 {[%emt 00:00:10] [%clk 00:15:34]} 5. c3 {[%emt
00:00:10] [%clk 00:15:35]} d6 {[%emt 00:00:38] [%clk 00:15:07]} 6. Nf3 {[%emt
00:00:10] [%clk 00:15:34]} Nf6 {[%emt 00:00:06] [%clk 00:15:12]} 7. O-O {[%emt
00:00:26] [%clk 00:15:17]} Be7 {[%emt 00:00:02] [%clk 00:15:20]} 8. Re1 {[%emt
00:00:13] [%clk 00:15:14]} h6 {[%emt 00:00:24] [%clk 00:15:07]} 9. Nbd2 {[%emt
00:00:05] [%clk 00:15:19]} Qd7 {[%emt 00:00:12] [%clk 00:15:05]} 10. Nf1 {[%emt
00:00:15] [%clk 00:15:13]} O-O-O {[%emt 00:00:24] [%clk 00:14:53]} 11. a4 {[%emt
00:00:26] [%clk 00:14:56]} Na5 {[%emt 00:00:35] [%clk 00:14:28]} 12. N3d2 {[%emt
00:00:20] [%clk 00:14:45]} c5 {[%emt 00:00:07] [%clk 00:14:33]} 13. Bb5 {[%emt
00:00:27] [%clk 00:14:27]} Qc7 {[%emt 00:00:44] [%clk 00:13:59]} 14. b4 {[%emt
00:00:46] [%clk 00:13:51]} cxb4 {[%emt 00:00:03] [%clk 00:14:06]} 15. cxb4
{[%clk 00:14:00]} Nc6 {[%emt 00:00:03] [%clk 00:14:13]} 16. Bb2 {[%emt 00:00:01]
[%clk 00:14:08]} d5 {[%emt 00:03:31] [%clk 00:10:53]} 17. e5 {[%emt 00:00:10]
[%clk 00:14:08]} Ne4 {[%emt 00:00:11] [%clk 00:10:52]} 18. Bxc6 {[%emt 00:00:07]
[%clk 00:14:12]} Bxc6 {[%emt 00:02:05] [%clk 00:08:57]} 19. b5 {[%emt 00:00:02]
[%clk 00:14:19]} Kb8 {[%emt 00:00:32] [%clk 00:08:36]} 20. Rec1 {[%emt 00:00:24]
[%clk 00:14:04]} Bxb5 {[%emt 00:01:52] [%clk 00:06:54]} 21. axb5 {[%emt
00:00:09] [%clk 00:14:04]} Qb7 {[%emt 00:00:07] [%clk 00:06:58]} 22. Rc6 {[%emt
00:01:29] [%clk 00:12:44]} Nxd2 {[%emt 00:00:42] [%clk 00:06:26]} 23. Nxd2
{[%emt 00:00:22] [%clk 00:12:32]} Rc8 {[%emt 00:00:33] [%clk 00:06:03]} 24. Rac1
{[%emt 00:00:02] [%clk 00:12:40]} Rxc6 {[%emt 00:00:21] [%clk 00:05:54]} 25.
bxc6 {[%emt 00:00:02] [%clk 00:12:47]} Qc7 {[%emt 00:00:06] [%clk 00:05:59]} 26.
Nb1 {[%emt 00:00:21] [%clk 00:12:35]} Rc8 {[%emt 00:01:58] [%clk 00:04:10]} 27.
Ba3 {[%emt 00:00:44] [%clk 00:12:01]} Bxa3 {[%emt 00:00:15] [%clk 00:04:06]} 28.
Nxa3 {[%emt 00:00:02] [%clk 00:12:09]} Qe7 {[%emt 00:00:02] [%clk 00:04:14]} 29.
Nb5 {[%emt 00:00:33] [%clk 00:11:45]} Qb4 {[%emt 00:00:28] [%clk 00:03:56]} 30.
c7+ {[%emt 00:00:06] [%clk 00:11:49]} Ka8 {[%emt 00:01:25] [%clk 00:02:42]} 31.
Nd6 {[%emt 00:00:06] [%clk 00:11:53]} 1-0

[Site "Europe Echecs"]

[Event "Championnat d'Europe Rapide"]
[Date "2024.12.08"]
[White "Costachi, Mihnea"]
[Black "Podlesnik, Bogdan"]
[WhiteElo "2464"]
[BlackElo "2288"]
[Round "10.45"]
[Result "1-0"]
[TimeControl "900+10"]

1. d4 {[%emt 00:00:03] [%clk 00:15:17]} Nf6 {[%clk 00:15:19]} 2. c4 {[%emt
00:00:01] [%clk 00:15:26]} e6 {[%emt 00:00:01] [%clk 00:15:28]} 3. Nf3 {[%emt
00:00:02] [%clk 00:15:34]} b6 {[%emt 00:00:02] [%clk 00:15:37]} 4. g3 {[%emt
00:00:01] [%clk 00:15:43]} Bb7 {[%clk 00:15:45]} 5. Bg2 {[%emt 00:00:02] [%clk
00:15:51]} Bb4+ {[%emt 00:00:02] [%clk 00:15:54]} 6. Bd2 {[%emt 00:00:17] [%clk
00:15:44]} a5 {[%emt 00:00:02] [%clk 00:16:02]} 7. O-O {[%emt 00:00:09] [%clk
00:15:44]} O-O {[%emt 00:00:02] [%clk 00:16:10]} 8. Nc3 {[%emt 00:00:08] [%clk
00:15:47]} d6 {[%emt 00:00:55] [%clk 00:15:24]} 9. Qc2 {[%emt 00:00:09] [%clk
00:15:48]} Bxc3 {[%emt 00:00:08] [%clk 00:15:27]} 10. Bxc3 {[%emt 00:00:03]
[%clk 00:15:55]} Be4 {[%emt 00:01:07] [%clk 00:14:29]} 11. Qd2 {[%emt 00:00:05]
[%clk 00:16:00]} Nbd7 {[%emt 00:00:17] [%clk 00:14:22]} 12. Bh3 {[%emt 00:00:10]
[%clk 00:16:00]} Bb7 {[%emt 00:02:57] [%clk 00:11:36]} 13. Qc2 {[%emt 00:00:13]
[%clk 00:15:57]} Ne4 {[%emt 00:00:36] [%clk 00:11:10]} 14. Be1 {[%emt 00:00:04]
[%clk 00:16:03]} Ng5 {[%emt 00:00:20] [%clk 00:10:59]} 15. Nxg5 {[%emt 00:00:16]
[%clk 00:15:57]} Qxg5 {[%emt 00:00:02] [%clk 00:11:08]} 16. e4 {[%emt 00:00:37]
[%clk 00:15:29]} Qh5 {[%emt 00:01:53] [%clk 00:09:25]} 17. Bg2 {[%emt 00:00:17]
[%clk 00:15:23]} f5 {[%emt 00:00:32] [%clk 00:09:03]} 18. Bd2 {[%emt 00:03:27]
[%clk 00:12:06]} fxe4 {[%emt 00:01:58] [%clk 00:07:15]} 19. Bxe4 {[%emt
00:00:02] [%clk 00:12:14]} Bxe4 {[%emt 00:00:04] [%clk 00:07:22]} 20. Qxe4
{[%emt 00:00:01] [%clk 00:12:22]} Rae8 {[%emt 00:00:32] [%clk 00:06:59]} 21.
Rae1 {[%emt 00:03:11] [%clk 00:09:21]} Qf3 {[%emt 00:01:32] [%clk 00:05:37]} 22.
Qxf3 {[%emt 00:01:00] [%clk 00:08:32]} Rxf3 {[%clk 00:05:46]} 23. Kg2 {[%emt
00:00:22] [%clk 00:08:20]} Rf7 {[%emt 00:00:02] [%clk 00:05:54]} 24. Re2 {[%emt
00:00:19] [%clk 00:08:10]} h6 {[%emt 00:01:37] [%clk 00:04:27]} 25. Rfe1 {[%emt
00:00:21] [%clk 00:08:00]} Rfe7 {[%emt 00:00:02] [%clk 00:04:35]} 26. Bc3 {[%emt
00:00:01] [%clk 00:08:08]} Kf7 {[%emt 00:00:18] [%clk 00:04:27]} 27. b3 {[%emt
00:00:09] [%clk 00:08:10]} e5 {[%emt 00:00:23] [%clk 00:04:14]} 28. dxe5 {[%emt
00:02:39] [%clk 00:05:40]} Nxe5 {[%emt 00:00:05] [%clk 00:04:20]} 29. Re3 {[%emt
00:00:16] [%clk 00:05:34]} g6 {[%emt 00:00:15] [%clk 00:04:15]} 30. h3 {[%emt
00:00:26] [%clk 00:05:18]} h5 {[%emt 00:00:23] [%clk 00:04:02]} 31. Rd1 {[%emt
00:00:24] [%clk 00:05:03]} Re6 {[%emt 00:00:51] [%clk 00:03:21]} 32. Rd5 {[%emt
00:00:12] [%clk 00:05:02]} g5 {[%emt 00:00:56] [%clk 00:02:35]} 33. Re4 {[%emt
00:01:29] [%clk 00:03:43]} Kg6 {[%emt 00:01:07] [%clk 00:01:38]} 34. Rd2 {[%emt
00:02:07] [%clk 00:01:45]} Nc6 {[%emt 00:00:34] [%clk 00:01:14]} 35. Rxe6+
{[%emt 00:00:09] [%clk 00:01:47]} Rxe6 {[%clk 00:01:23]} 36. Kf1 {[%emt
00:00:36] [%clk 00:01:21]} g4 {[%emt 00:00:05] [%clk 00:01:27]} 37. Kg2 {[%emt
00:00:18] [%clk 00:01:13]} Ne5 {[%emt 00:00:16] [%clk 00:01:21]} 38. hxg4 {[%emt
00:00:09] [%clk 00:01:14]} hxg4 {[%emt 00:00:02] [%clk 00:01:29]} 39. Rd4 {[%emt
00:00:11] [%clk 00:01:14]} Kh5 {[%emt 00:00:59] [%clk 00:00:39]} 40. Re4 {[%emt
00:00:13] [%clk 00:01:12]} Re7 {[%emt 00:00:11] [%clk 00:00:39]} 41. Bxe5 {[%emt
00:00:36] [%clk 00:00:46]} dxe5 {[%emt 00:00:01] [%clk 00:00:48]} 42. Re2 {[%emt
00:00:27] [%clk 00:00:28]} Kg5 {[%emt 00:00:04] [%clk 00:00:53]} 43. Rd2 {[%emt
00:00:01] [%clk 00:00:37]} Kf5 {[%emt 00:00:02] [%clk 00:01:02]} 44. Kf1 {[%emt
00:00:05] [%clk 00:00:41]} Ke4 {[%emt 00:00:24] [%clk 00:00:48]} 45. Ke2 {[%emt
00:00:09] [%clk 00:00:43]} Rf7 {[%emt 00:00:34] [%clk 00:00:23]} 46. Rd8 {[%emt
00:00:06] [%clk 00:00:47]} Rf3 {[%emt 00:00:08] [%clk 00:00:26]} 47. Rg8 {[%emt
00:00:17] [%clk 00:00:40]} Rc3 {[%emt 00:00:01] [%clk 00:00:35]} 48. Kd2 {[%emt
00:00:18] [%clk 00:00:32]} Rf3 {[%emt 00:00:04] [%clk 00:00:40]} 49. Ke2 {[%emt
00:00:23] [%clk 00:00:20]} Rc3 {[%clk 00:00:49]} 50. Rxg4+ {[%emt 00:00:04]
[%clk 00:00:27]} Kf5 {[%emt 00:00:01] [%clk 00:00:58]} 51. Rg7 {[%clk 00:00:36]}
Rc2+ {[%emt 00:00:06] [%clk 00:01:02]} 52. Kf3 {[%emt 00:00:21] [%clk 00:00:25]}
Rxa2 {[%emt 00:00:38] [%clk 00:00:34]} 53. g4+ {[%emt 00:00:18] [%clk 00:00:17]}
Ke6 {[%emt 00:00:05] [%clk 00:00:38]} 54. Rxc7 {[%emt 00:00:02] [%clk 00:00:26]}
e4+ {[%emt 00:00:08] [%clk 00:00:40]} 55. Ke3 {[%emt 00:00:08] [%clk 00:00:27]}
Kd6 {[%emt 00:00:14] [%clk 00:00:37]} 56. Ra7 {[%emt 00:00:14] [%clk 00:00:23]}
Rb2 {[%emt 00:00:05] [%clk 00:00:42]} 57. Ra8 {[%emt 00:00:19] [%clk 00:00:15]}
Ke6 {[%emt 00:00:15] [%clk 00:00:36]} 58. Ra6 {[%emt 00:00:11] [%clk 00:00:13]}
Rxb3+ {[%emt 00:00:10] [%clk 00:00:37]} 59. Kxe4 {[%clk 00:00:22]} Rb4 {[%clk
00:00:47]} 60. Kd4 {[%emt 00:00:10] [%clk 00:00:22]} Kf6 {[%emt 00:00:05] [%clk
00:00:52]} 61. f4 {[%emt 00:00:01] [%clk 00:00:31]} a4 {[%emt 00:00:21] [%clk
00:00:41]} 62. Kd5 {[%emt 00:00:04] [%clk 00:00:37]} Kg6 {[%emt 00:00:07] [%clk
00:00:43]} 63. Ke5 {[%emt 00:00:14] [%clk 00:00:33]} Rxc4 {[%emt 00:00:22] [%clk
00:00:32]} 64. Rxb6+ {[%emt 00:00:01] [%clk 00:00:42]} Kf7 {[%emt 00:00:04]
[%clk 00:00:38]} 65. Ra6 {[%emt 00:00:09] [%clk 00:00:42]} Rb4 {[%emt 00:00:10]
[%clk 00:00:39]} 66. g5 {[%emt 00:00:05] [%clk 00:00:46]} Kg7 {[%emt 00:00:02]
[%clk 00:00:47]} 67. Kf5 {[%emt 00:00:03] [%clk 00:00:54]} Rb5+ {[%emt 00:00:02]
[%clk 00:00:55]} 68. Kg4 {[%clk 00:01:03]} Rb4 {[%emt 00:00:01] [%clk 00:01:04]}
69. Rc6 {[%emt 00:00:23] [%clk 00:00:50]} a3 {[%emt 00:00:06] [%clk 00:01:09]}
70. Rc7+ {[%emt 00:00:15] [%clk 00:00:45]} Kg8 {[%emt 00:00:11] [%clk 00:01:07]}
71. Ra7 {[%emt 00:00:01] [%clk 00:00:54]} Rb3 {[%clk 00:01:16]} 72. f5 {[%emt
00:00:12] [%clk 00:00:52]} Kf8 {[%emt 00:00:18] [%clk 00:01:08]} 73. Kh5 {[%emt
00:00:01] [%clk 00:01:00]} Kg8 {[%emt 00:00:27] [%clk 00:00:51]} 74. Kg6 {[%emt
00:00:02] [%clk 00:01:08]} Rb6+ {[%emt 00:00:10] [%clk 00:00:52]} 75. f6 {[%emt
00:00:02]} Rb8 {[%clk 00:01:01]} 76. Rg7+ {[%emt 00:00:15] [%clk 00:01:12]} Kf8
{[%emt 00:00:04] [%clk 00:01:07]} 77. Rh7 {[%emt 00:00:02] [%clk 00:01:20]} 1-0

[Site "Europe Echecs"]

[Event "Championnat d'Europe Rapide"]
[Date "2024.12.08"]
[White "Sadiku, Bedri"]
[Black "Vuckovic, Zarko"]
[WhiteElo "2159"]
[BlackElo "2334"]
[Round "10.46"]
[Result "1-0"]
[TimeControl "900+10"]

1. Nf3 {[%emt 00:00:02] [%clk 00:15:17]} d5 {[%emt 00:00:01] [%clk 00:15:19]} 2.
g3 {[%emt 00:00:03] [%clk 00:15:24]} Nd7 {[%emt 00:00:02] [%clk 00:15:28]} 3. d3
{[%emt 00:00:18] [%clk 00:15:15]} e5 {[%emt 00:00:02] [%clk 00:15:36]} 4. e4
{[%emt 00:00:44] [%clk 00:14:41]} c6 {[%emt 00:00:07] [%clk 00:15:39]} 5. Bg2
{[%emt 00:00:12] [%clk 00:14:39]} Ngf6 {[%emt 00:00:02] [%clk 00:15:47]} 6. Nbd2
{[%emt 00:00:22] [%clk 00:14:27]} Bd6 {[%emt 00:00:04] [%clk 00:15:53]} 7. O-O
{[%emt 00:00:04] [%clk 00:14:34]} O-O {[%emt 00:00:02] [%clk 00:16:00]} 8. h3
{[%emt 00:00:10] [%clk 00:14:34]} Re8 {[%emt 00:00:02] [%clk 00:16:08]} 9. Qe2
{[%emt 00:01:15] [%clk 00:13:29]} h6 {[%emt 00:00:12] [%clk 00:16:07]} 10. Nh2
{[%emt 00:01:26] [%clk 00:12:12]} a5 {[%emt 00:01:02] [%clk 00:15:16]} 11. Ng4
{[%emt 00:00:08] [%clk 00:12:13]} Nxg4 {[%emt 00:00:07] [%clk 00:15:19]} 12.
Qxg4 {[%emt 00:00:11] [%clk 00:12:12]} Nf6 {[%emt 00:00:05] [%clk 00:15:24]} 13.
Qe2 {[%emt 00:00:05] [%clk 00:12:17]} a4 {[%emt 00:00:05] [%clk 00:15:29]} 14.
a3 {[%emt 00:00:20] [%clk 00:12:08]} b6 {[%emt 00:00:13] [%clk 00:15:25]} 15.
Re1 {[%emt 00:00:35] [%clk 00:11:42]} Ba6 {[%emt 00:00:18] [%clk 00:15:18]} 16.
c4 {[%emt 00:00:22] [%clk 00:11:31]} d4 {[%emt 00:00:04] [%clk 00:15:23]} 17. b4
{[%emt 00:00:54] [%clk 00:10:46]} axb3 {[%emt 00:00:30] [%clk 00:15:04]} 18.
Nxb3 {[%emt 00:00:02] [%clk 00:10:55]} b5 {[%emt 00:00:16] [%clk 00:14:57]} 19.
c5 {[%emt 00:00:10] [%clk 00:10:55]} Bf8 {[%emt 00:00:01] [%clk 00:15:05]} 20.
Bd2 {[%emt 00:00:24] [%clk 00:10:41]} Bc8 {[%emt 00:00:06] [%clk 00:15:11]} 21.
Bb4 {[%emt 00:00:08] [%clk 00:10:43]} Be6 {[%emt 00:00:58] [%clk 00:14:23]} 22.
Rab1 {[%emt 00:00:07] [%clk 00:10:45]} Nd7 {[%emt 00:00:13]} 23. Rec1 {[%clk
00:10:48]} Qc7 {[%emt 00:00:03] [%clk 00:14:34]} 24. Qd2 {[%emt 00:00:48] [%clk
00:10:10]} Ra4 {[%emt 00:01:16] [%clk 00:13:28]} 25. f4 {[%emt 00:00:38] [%clk
00:09:43]} f6 {[%emt 00:00:09] [%clk 00:13:28]} 26. f5 {[%emt 00:00:15] [%clk
00:09:38]} Bf7 {[%emt 00:00:02] [%clk 00:13:36]} 27. Qc2 {[%emt 00:00:12] [%clk
00:09:36]} Nb8 {[%emt 00:00:14] [%clk 00:13:32]} 28. Nd2 {[%emt 00:00:18] [%clk
00:09:28]} Na6 {[%emt 00:00:06] [%clk 00:13:36]} 29. Rb2 {[%emt 00:00:06] [%clk
00:09:32]} Ra8 {[%emt 00:00:16] [%clk 00:13:30]} 30. g4 {[%emt 00:00:38] [%clk
00:09:05]} Nxb4 {[%emt 00:00:34] [%clk 00:13:06]} 31. axb4 {[%emt 00:00:02]
[%clk 00:09:13]} Ra2 {[%emt 00:00:01] [%clk 00:13:14]} 32. Rcb1 {[%emt 00:00:02]
[%clk 00:09:21]} R2a3 {[%emt 00:00:01] [%clk 00:13:23]} 33. Nb3 {[%emt 00:00:21]
[%clk 00:09:10]} R8a4 {[%emt 00:00:06] [%clk 00:13:27]} 34. Qd2 {[%emt 00:00:27]
[%clk 00:08:53]} Be7 {[%emt 00:00:12] [%clk 00:13:25]} 35. Bf1 {[%emt 00:00:06]
[%clk 00:08:57]} Kh8 {[%emt 00:00:03] [%clk 00:13:33]} 36. Be2 {[%emt 00:00:21]
[%clk 00:08:46]} Ra6 {[%emt 00:01:55] [%clk 00:11:48]} 37. Bd1 {[%emt 00:00:11]
[%clk 00:08:45]} Bg8 {[%emt 00:00:02] [%clk 00:11:56]} 38. Bc2 {[%emt 00:01:30]
[%clk 00:07:24]} Ra2 {[%emt 00:00:06] [%clk 00:12:01]} 39. Bd1 {[%emt 00:00:20]
[%clk 00:07:14]} Qa7 {[%emt 00:00:06] [%clk 00:12:05]} 40. Rxa2 {[%emt 00:00:23]
[%clk 00:07:01]} Rxa2 {[%emt 00:00:02] [%clk 00:12:13]} 41. Rb2 {[%emt 00:00:01]
[%clk 00:07:10]} Ra6 {[%emt 00:01:05] [%clk 00:11:17]} 42. Nc1 {[%emt 00:00:29]
[%clk 00:06:52]} Ra1 {[%emt 00:00:39] [%clk 00:10:47]} 43. Kf2 {[%emt 00:00:21]
[%clk 00:06:40]} Qa3 {[%emt 00:00:27] [%clk 00:10:31]} 44. Ke2 {[%emt 00:00:45]
[%clk 00:06:04]} Qc3 {[%emt 00:00:21] [%clk 00:10:21]} 45. Qxc3 {[%emt 00:00:55]
[%clk 00:05:20]} dxc3 {[%emt 00:00:01] [%clk 00:10:29]} 46. Rc2 {[%clk
00:05:29]} Rb1 {[%emt 00:00:03] [%clk 00:10:37]} 47. Rxc3 {[%emt 00:00:03] [%clk
00:05:37]} Rxb4 {[%emt 00:00:12] [%clk 00:10:34]} 48. Bb3 {[%emt 00:00:26] [%clk
00:05:21]} Bxb3 {[%emt 00:00:35] [%clk 00:10:09]} 49. Nxb3 {[%emt 00:00:02]
[%clk 00:05:29]} Ra4 {[%emt 00:00:01] [%clk 00:10:18]} 50. Rc2 {[%emt 00:01:14]
[%clk 00:04:26]} Kg8 {[%emt 00:00:22] [%clk 00:10:06]} 51. Kd2 {[%emt 00:00:14]
[%clk 00:04:21]} Kf7 {[%emt 00:00:10] [%clk 00:10:06]} 52. Kc3 {[%emt 00:00:05]
[%clk 00:04:27]} Ke8 {[%emt 00:00:02] [%clk 00:10:13]} 53. Rd2 {[%emt 00:00:15]
[%clk 00:04:22]} Kd7 {[%emt 00:00:24] [%clk 00:09:59]} 54. Kb2 {[%emt 00:00:15]
[%clk 00:04:18]} Kc7 {[%emt 00:00:41] [%clk 00:09:27]} 55. Rd1 {[%emt 00:00:04]
[%clk 00:04:24]} Kb7 {[%emt 00:00:21] [%clk 00:09:16]} 56. Rc1 {[%emt 00:00:27]
[%clk 00:04:07]} Ra8 {[%emt 00:00:22] [%clk 00:09:04]} 57. Rd1 {[%emt 00:00:17]
[%clk 00:04:01]} Rh8 {[%emt 00:00:52] [%clk 00:08:21]} 58. Kc3 {[%emt 00:00:35]
[%clk 00:03:36]} h5 {[%emt 00:00:06] [%clk 00:08:26]} 59. d4 {[%emt 00:00:38]
[%clk 00:03:07]} exd4+ {[%emt 00:00:12] [%clk 00:08:24]} 60. Rxd4 {[%emt
00:00:02] [%clk 00:03:15]} Kc7 {[%emt 00:00:01] [%clk 00:08:33]} 61. Rd3 {[%emt
00:00:12] [%clk 00:03:14]} hxg4 {[%emt 00:00:06] [%clk 00:08:37]} 62. hxg4
{[%clk 00:03:23]} Rh4 {[%emt 00:00:02] [%clk 00:08:45]} 63. Rg3 {[%emt 00:00:02]
[%clk 00:03:31]} Rh1 {[%emt 00:00:09] [%clk 00:08:47]} 64. Kd4 {[%emt 00:00:37]
[%clk 00:03:03]} Rh2 {[%emt 00:01:20] [%clk 00:07:37]} 65. e5 {[%emt 00:00:45]
[%clk 00:02:28]} Re2 {[%emt 00:03:30] [%clk 00:04:17]} 66. e6 {[%emt 00:00:10]
[%clk 00:02:28]} Re5 {[%emt 00:00:02] [%clk 00:04:25]} 67. Rh3 {[%emt 00:00:16]
[%clk 00:02:22]} Rd5+ {[%emt 00:00:46] [%clk 00:03:49]} 68. Ke4 {[%emt 00:00:01]
[%clk 00:02:31]} Bxc5 {[%emt 00:00:02] [%clk 00:03:57]} 69. Nxc5 {[%emt
00:00:05] [%clk 00:02:36]} Rxc5 {[%emt 00:00:02] [%clk 00:04:06]} 70. Rh7 {[%emt
00:00:01] [%clk 00:02:44]} Re5+ {[%emt 00:00:18] [%clk 00:03:59]} 71. Kf4 {[%emt
00:00:03] [%clk 00:02:51]} b4 {[%emt 00:01:07] [%clk 00:03:02]} 72. Rxg7+ {[%clk
00:02:59]} Kb6 {[%emt 00:00:01] [%clk 00:03:11]} 73. Rg8 {[%emt 00:00:03] [%clk
00:03:06]} Kc7 {[%emt 00:00:18] [%clk 00:03:04]} 74. g5 {[%emt 00:00:03] [%clk
00:03:13]} b3 {[%emt 00:00:09] [%clk 00:03:05]} 75. gxf6 {[%emt 00:00:05] [%clk
00:03:18]} b2 {[%emt 00:00:02] [%clk 00:03:12]} 76. Rg1 {[%emt 00:00:03] [%clk
00:03:24]} Rc5 {[%emt 00:00:06] [%clk 00:03:17]} 77. Rb1 {[%emt 00:00:02] [%clk
00:03:33]} 1-0

[Site "Europe Echecs"]